bitfinex-derivatives/quotes_ETHF0:USTF0_20260120
["timestamp","ask_amount","ask_price","bid_price","bid_amount"]
[1768953087295,3.47552432,2937.1,2935.7,2.155]
[1768953090897,0.00292641,2937.1,2935.7,5.65201372]
[1768953091795,0.00292641,2937.1,2935.8,3.66751372]
[1768953091994,0.00292641,2937.1,2936.0,3.66750372]
[1768953092491,0.00292641,2937.1,2936.2,3.66749372]
[1768953092689,3.47259791,2938.0,2936.2,3.66749372]
[1768953093802,3.47598812,2938.0,2936.2,3.66749372]
[1768953094598,3.47598812,2938.0,2936.4,3.49701372]
[1768953094798,3.47598812,2938.0,2936.5,3.409]
[1768953094999,3.47598812,2938.0,2936.6,2.154]
[1768953095303,3.47598812,2938.0,2936.6,2.15820955]
[1768953095801,3.47598812,2938.0,2936.6,0.00420955]
[1768953096007,3.47598812,2938.0,2936.7,2.154]
[1768953097001,0.00339021,2938.0,2936.7,2.154]
[1768953097404,0.00339021,2938.0,2936.8,3.49701372]
[1768953098195,0.00339021,2938.0,2936.9,2.154]
[1768953098601,0.00339021,2938.0,2936.8,3.49701372]
[1768953098809,0.00339021,2938.0,2937.0,2.153]
[1768953099001,0.00339021,2938.0,2936.8,3.49701372]
[1768953099201,0.00339021,2938.0,2936.9,2.153]
[1768953101314,0.00339021,2938.0,2936.8,3.49701372]
[1768953101508,0.00339021,2938.0,2936.9,2.154]
[1768953102710,0.00339021,2938.0,2937.0,2.153]
[1768953104913,0.00339021,2938.0,2936.8,3.49701372]
[1768953105114,0.00339021,2938.0,2936.9,2.153]
[1768953105514,0.00339021,2938.0,2936.9,5.6222968]
[1768953106915,0.00339021,2938.0,2937.0,3.4692968]
[1768953110035,0.00339021,2938.0,2936.6,3.47350635]
[1768953110314,0.00339021,2938.0,2937.1,2.152]
[1768953112217,2.09097985,2938.8,2937.2,3.4692968]
[1768953113020,1.39231814,2938.4,2937.2,3.4692968]
[1768953113218,1.39604922,2938.4,2937.2,3.4692968]
[1768953115122,0.00373108,2938.4,2937.2,3.4692968]
[1768953115313,0.00373108,2938.4,2937.4,3.4692968]
[1768953115519,0.00373108,2938.4,2937.6,3.4692968]
[1768953115720,1.39231814,2938.8,2937.6,3.4692968]
[1768953116620,1.39516917,2938.8,2937.6,3.4692968]
[1768953118811,1.39516917,2938.8,2937.7,3.407]
[1768953119820,1.39231814,2938.6,2937.4,0.17041]
[1768953120027,1.39231814,2938.2,2937.5,5.561]
[1768953120228,1.39231814,2938.4,2937.5,5.561]
[1768953120425,1.39231814,2938.6,2937.5,5.561]
[1768953120625,1.39231814,2938.6,2937.3,3.4692968]
[1768953120826,1.39231814,2938.6,2937.6,2.154]
[1768953121129,0.00285103,2938.8,2937.8,1.39231814]
[1768953121527,0.00285103,2938.8,2937.7,3.4692968]
[1768953122028,0.00285103,2938.8,2937.8,2.154]
[1768953122227,1.39231814,2938.7,2937.9,2.154]
[1768953123127,1.39231814,2938.7,2937.5,0.1704]
[1768953123329,1.39231814,2938.7,2937.6,5.561]
[1768953127125,1.39231814,2938.1,2936.9,3.6397368]
[1768953127429,1.39231814,2938.1,2937.0,2.157]
[1768953127628,3.59370041,2938.7,2937.1,1.39231814]
[1768953127830,0.00285103,2938.8,2937.5,4.86161494]
[1768953128226,0.00285103,2938.8,2937.6,1.39231814]
[1768953128530,0.00285103,2938.8,2937.7,2.158]
[1768953130626,0.00285103,2938.8,2937.6,1.39231814]
[1768953130823,0.00285103,2938.8,2937.7,2.157]
[1768953131129,0.00285103,2938.8,2937.8,2.157]
[1768953131326,0.00285103,2938.8,2937.8,5.6262968]
[1768953131725,0.00285103,2938.8,2937.9,3.4692968]
[1768953133027,0.00285103,2938.8,2937.5,3.4692968]
[1768953133232,3.42622144,2938.8,2937.2,4.26805195]
[1768953133433,3.42622144,2938.8,2937.6,2.157]
[1768953133730,3.42622144,2938.8,2937.1,3.6397168]
[1768953133731,3.42622144,2938.8,2937.5,2.157]
[1768953134739,3.42622144,2938.8,2937.4,2.157]
[1768953135230,3.42715065,2938.6,2937.4,2.157]
[1768953135435,3.42715065,2938.6,2937.1,0.17042]
[1768953135631,3.42715065,2938.6,2937.2,2.157]
[1768953136238,3.42715065,2938.6,2937.1,0.17042]
[1768953136536,3.42715065,2938.6,2937.3,2.157]
[1768953136738,3.42715065,2938.6,2936.7,3.4692968]
[1768953136939,3.42715065,2938.4,2936.8,5.564]
[1768953137338,3.42715065,2938.4,2936.9,2.157]
[1768953138438,3.42715065,2938.4,2937.0,2.156]
[1768953139333,3.42715065,2938.4,2936.6,0.00420955]
[1768953139334,3.42715065,2938.2,2936.6,0.00420955]
[1768953139634,3.42715065,2938.2,2936.7,2.156]
[1768953139836,3.42715065,2938.0,2936.6,2.16020955]
[1768953140033,3.59752065,2938.0,2936.6,2.16020955]
[1768953142138,3.59752065,2938.0,2936.6,0.00420955]
[1768953143647,0.17037,2938.0,2936.6,3.58863082]
[1768953144748,0.17037,2938.0,2936.7,5.563]
[1768953145150,0.17037,2938.0,2936.7,9.14742127]
[1768953146052,3.59752065,2938.0,2936.8,2.156]
[1768953147351,6.61934,2938.7,2936.9,3.58442127]
[1768953147543,10.04649065,2938.7,2936.9,3.58442127]
[1768953148148,3.42715065,2938.6,2936.9,2.155]
[1768953148451,3.42715065,2938.6,2937.0,3.58442127]
[1768953148653,0.17036,2938.3,2937.0,3.58442127]
[1768953149054,0.00285103,2938.8,2937.0,3.75485127]
[1768953149354,3.43000168,2938.8,2937.1,3.58442127]
[1768953149555,3.43000168,2938.8,2937.2,5.562]
[1768953150953,3.42715065,2938.5,2937.2,2.157]
[1768953152449,3.59750065,2938.5,2936.7,6.99142127]
[1768953152653,3.59750065,2938.5,2936.7,3.58442127]
[1768953152853,3.42715065,2938.1,2936.6,0.00420955]
[1768953153455,2.08943494,2938.6,2936.6,0.00420955]
[1768953153456,3.59754065,2937.7,2936.6,0.00420955]
[1768953159365,3.42715065,2937.7,2936.6,0.00420955]
[1768953161659,3.42715065,2938.3,2936.7,3.58442127]
[1768953161866,0.17038,2937.9,2936.6,2.16020955]
[1768953162363,3.59753065,2937.9,2936.6,2.16020955]
[1768953164068,3.59753065,2937.9,2936.6,0.00420955]
[1768953172872,0.17039,2937.8,2936.6,0.00420955]
[1768953173073,3.74001537,2937.7,2936.6,0.00420955]
[1768953173670,3.91041537,2937.6,2936.6,0.00420955]
[1768953173876,3.74001537,2937.4,2936.6,0.00420955]
[1768953174978,0.17042,2937.3,2936.6,0.00420955]
[1768953175281,3.91043537,2937.3,2936.6,0.00420955]
[1768953176078,3.91043537,2937.2,2935.4,7.86225908]
[1768953176272,3.91043537,2937.2,2935.5,5.562]
[1768953176476,3.91043537,2937.2,2935.4,7.86225908]
[1768953176477,3.74001537,2937.1,2935.6,3.408]
[1768953176682,3.91044537,2937.0,2935.7,2.154]
[1768953176880,3.91045537,2936.9,2935.4,3.42367713]
[1768953177077,3.74001537,2936.6,2935.4,0.00287568]
[1768953177282,0.00318661,2936.6,2935.4,2.15787568]
[1768953178785,0.00318661,2936.6,2935.5,3.42367713]
[1768953180685,6.449,2937.3,2935.5,3.42367713]
[1768953180686,0.17042,2937.3,2935.5,3.42367713]
[1768953181078,0.17042,2937.3,2935.7,3.42367713]
[1768953181277,3.74001537,2937.8,2935.7,3.59418713]
[1768953181677,3.74288529,2937.8,2935.7,3.59418713]
[1768953182091,3.74288529,2937.8,2935.9,3.42367713]
[1768953182284,0.99922759,2937.7,2935.9,3.42367713]
[1768953182485,3.74288529,2937.8,2935.9,3.42367713]
[1768953182785,0.99922922,2937.7,2935.9,3.42367713]
[1768953182984,3.74288529,2937.8,2935.9,3.42367713]
[1768953183184,0.99923973,2937.7,2935.9,3.42367713]
[1768953183390,3.74288529,2937.8,2935.9,3.42367713]
[1768953183582,0.99928176,2937.7,2935.9,3.42367713]
[1768953183779,3.74288529,2937.8,2935.9,3.42367713]
[1768953183980,0.99928139,2937.7,2935.9,3.42367713]
[1768953184282,3.74288529,2937.8,2935.9,3.42367713]
[1768953184484,0.9993064,2937.7,2935.9,3.42367713]
[1768953184685,3.74288529,2937.8,2935.9,3.42367713]
[1768953184885,3.74288529,2937.8,2935.9,3.59416713]
[1768953185479,3.74288529,2937.8,2936.0,5.565]
[1768953185681,3.74288529,2937.8,2936.0,8.98867713]
[1768953186187,3.74288529,2937.8,2936.1,3.42367713]
[1768953187090,0.00286992,2937.8,2936.1,3.42367713]
[1768953187290,0.00286992,2937.8,2936.1,3.59415713]
[1768953188884,0.00286992,2937.8,2936.3,3.42367713]
[1768953189292,0.00286992,2937.8,2936.5,3.59413713]
[1768953189596,3.74001537,2938.4,2936.8,3.42367713]
[1768953189994,3.74001537,2938.4,2936.9,2.158]
[1768953190188,3.74001537,2938.4,2936.9,5.566]
[1768953190382,3.742692,2938.4,2936.9,5.566]
[1768953191690,3.74001537,2938.2,2936.5,3.408]
[1768953191993,3.74001537,2938.2,2936.6,2.158]
[1768953192386,3.74001537,2938.2,2936.1,4.43853195]
[1768953192387,0.17037,2938.1,2936.1,4.43853195]
[1768953192594,3.74001537,2938.0,2936.2,5.567]
[1768953193194,3.74001537,2937.8,2936.3,2.159]
[1768953195397,3.74001537,2937.8,2936.1,0.17048]
[1768953195596,3.43284834,2937.6,2936.2,2.159]
[1768953196101,3.43284834,2937.6,2936.3,2.159]
[1768953197003,3.43284834,2937.4,2935.6,3.408]
[1768953197201,3.60325834,2937.4,2935.5,3.50651793]
[1768953197401,3.43284834,2937.2,2935.6,2.159]
[1768953199306,3.60326834,2937.2,2935.6,2.159]
[1768953199506,4.43079974,2937.1,2935.4,0.00287568]
[1768953199702,3.43284834,2937.1,2935.5,2.159]
[1768953200097,0.17044,2936.9,2935.5,2.159]
[1768953200297,3.60328834,2936.9,2935.5,2.159]
[1768953200503,3.43284834,2937.3,2935.6,3.50651793]
[1768953201700,0.1704,2937.6,2935.6,3.67702793]
[1768953202409,0.1704,2937.6,2935.8,3.50651793]
[1768953204402,0.1704,2937.6,2935.8,3.67701793]
[1768953205000,3.43284834,2938.1,2936.0,3.67700793]
[1768953205205,0.17302663,2938.4,2936.0,3.50651793]
[1768953205408,3.60587497,2938.4,2936.0,3.50651793]
[1768953205612,3.60587497,2938.4,2936.1,3.50651793]
[1768953205911,3.60587497,2938.4,2936.3,3.50651793]
[1768953206112,3.60587497,2938.4,2936.4,5.66451793]
[1768953206614,3.60587497,2938.4,2936.5,5.566]
[1768953207003,3.60587497,2938.4,2936.5,9.07251793]
[1768953207205,3.60587497,2938.4,2936.6,3.50651793]
[1768953207709,3.43552497,2938.4,2936.8,3.50651793]
[1768953207903,0.00267663,2938.4,2936.8,3.67695793]
[1768953208109,0.00267663,2938.4,2937.0,3.50651793]
[1768953209715,0.00267663,2938.4,2937.0,3.67694793]
[1768953210017,0.00267663,2938.4,2937.2,3.50651793]
[1768953210315,0.00267663,2938.4,2937.3,5.66551793]
[1768953210507,0.00267663,2938.4,2937.4,3.50651793]
[1768953211720,0.00267663,2938.4,2937.5,3.408]
[1768953211910,0.00267663,2938.4,2937.5,3.41064145]
[1768953214218,0.00267663,2938.4,2937.5,6.91715938]
[1768953215019,3.60316834,2939.0,2937.5,6.91715938]
[1768953215817,3.60672398,2939.0,2937.5,6.91715938]
[1768953216121,0.17387564,2939.0,2937.6,3.50651793]
[1768953216317,3.43284834,2939.8,2937.6,3.50651793]
[1768953216523,3.43284834,2939.8,2938.0,3.67688793]
[1768953216823,3.43284834,2939.8,2938.2,3.50651793]
[1768953217415,3.4357754,2939.8,2938.2,3.50651793]
[1768953217819,3.4357754,2939.8,2938.3,5.565]
[1768953218014,3.4357754,2939.8,2938.4,2.158]
[1768953218215,3.4357754,2939.8,2938.4,5.565]
[1768953218923,3.4357754,2939.8,2938.5,2.158]
[1768953219423,3.4357754,2939.8,2938.2,3.50651793]
[1768953219612,3.4357754,2939.8,2938.3,5.565]
[1768953219815,3.4357754,2939.8,2938.3,9.07151793]
[1768953220618,3.4357754,2939.8,2938.3,3.50651793]
[1768953220821,3.4357754,2939.8,2938.0,3.67688793]
[1768953221317,3.4357754,2939.8,2937.7,15.2]
[1768953221523,3.43284834,2939.4,2937.8,2.158]
[1768953222120,3.43284834,2939.4,2937.6,3.50651793]
[1768953222315,3.43284834,2939.4,2937.9,2.158]
[1768953223014,3.43284834,2939.4,2937.9,5.66451793]
[1768953224325,0.17029,2939.5,2938.0,3.50651793]
[1768953226818,0.17029,2939.5,2938.2,3.4566324]
[1768953227018,3.4357754,2939.8,2938.2,3.4566324]
[1768953228523,3.4357754,2939.8,2938.0,15.37037]
[1768953228728,3.4357754,2939.8,2938.1,5.564]
[1768953229922,2.09097509,2938.9,2937.5,0.00264145]
[1768953230128,3.46508077,2939.3,2937.6,5.563]
[1768953230625,3.46508077,2939.3,2937.5,0.00264145]
[1768953230830,3.46508077,2939.3,2937.6,5.563]
[1768953232121,3.46508077,2939.3,2937.5,0.00264145]
[1768953232325,3.46508077,2939.3,2937.6,5.563]
[1768953236436,3.46508077,2939.3,2937.7,3.4566324]
[1768953237534,3.46508077,2939.3,2937.6,0.1704]
[1768953237728,3.46508077,2939.3,2937.7,2.156]
[1768953237936,3.63538077,2939.3,2937.7,2.156]
[1768953239236,3.63538077,2939.3,2937.6,0.1704]
[1768953239436,3.63538077,2939.3,2937.7,2.156]
[1768953240138,3.46508077,2939.1,2937.5,0.00264145]
[1768953240338,3.46508077,2938.6,2937.5,0.00264145]
[1768953240539,2.09097509,2938.9,2937.5,0.00264145]
[1768953240540,3.46508077,2938.4,2937.5,0.00264145]
[1768953240737,4.46506578,2938.3,2937.5,0.00264145]
[1768953240936,3.46508077,2938.3,2937.5,0.00264145]
[1768953241432,2.96165033,2939.4,2937.5,0.00264145]
[1768953241433,3.46508077,2938.8,2937.5,0.00264145]
[1768953241635,0.17032,2939.0,2937.5,0.00264145]
[1768953242336,3.63540077,2939.0,2937.5,0.00264145]
[1768953242741,3.46508077,2938.8,2937.5,0.00264145]
[1768953242937,3.46508077,2938.8,2937.5,2.15864145]
[1768953244242,3.46508077,2938.8,2937.5,0.00264145]
[1768953244537,3.46508077,2938.8,2937.5,2.15764145]
[1768953245142,3.46508077,2938.8,2937.5,0.00264145]
[1768953247544,3.46508077,2938.6,2937.5,0.00264145]
[1768953248448,3.46508077,2938.4,2937.5,0.00264145]
[1768953251245,3.46508077,2938.8,2937.5,0.00264145]
[1768953253751,0.17031,2939.1,2937.5,0.00264145]
[1768953254246,3.63539077,2939.1,2937.5,0.00264145]
[1768953258240,5.79729272,2938.9,2937.5,0.00264145]
[1768953258444,4.53520134,2938.8,2937.5,0.00264145]
[1768953258644,3.53598763,2938.8,2937.5,0.00264145]
[1768953266451,3.53598763,2938.8,2937.6,3.407]
[1768953268250,0.17031,2939.2,2937.6,7.15841031]
[1768953268251,3.53598763,2939.2,2937.6,7.15841031]
[1768953268558,3.53598763,2939.2,2937.7,3.75140031]
[1768953269257,3.53598763,2939.2,2937.8,3.58101031]
[1768953269459,3.53598763,2939.6,2937.8,3.58101031]
[1768953269652,3.53598763,2939.6,2938.1,3.58101031]
[1768953269853,0.00292706,2939.8,2938.2,5.90337031]
[1768953271561,0.00292706,2939.8,2938.3,3.58101031]
[1768953272061,0.00292706,2939.8,2938.4,3.75136031]
[1768953272260,0.00292706,2939.8,2938.4,3.58101031]
[1768953273557,0.00292706,2939.8,2938.5,3.75135031]
[1768953274461,0.00292706,2939.8,2937.8,22.88005195]
[1768953274462,3.53891469,2939.8,2937.9,0.17038]
[1768953274658,3.53891469,2939.8,2938.0,5.559]
[1768953274853,3.53891469,2939.8,2938.1,5.559]
[1768953275250,3.53891469,2939.8,2937.9,0.17038]
[1768953275458,3.53891469,2939.8,2938.0,5.559]
[1768953277364,3.53891469,2939.8,2938.1,5.558]
[1768953277564,3.53891469,2939.8,2938.1,9.13901031]
[1768953278157,3.53891469,2939.8,2938.1,9.30938031]
[1768953278359,3.53891469,2939.8,2938.2,3.58101031]
[1768953278764,3.53891469,2939.8,2938.2,3.75137031]
[1768953279758,3.53891469,2939.8,2938.3,3.67553704]
[1768953281666,3.53891469,2939.8,2938.4,5.558]
[1768953283572,3.53891469,2939.8,2938.3,3.67553704]
[1768953283874,0.00292706,2939.8,2938.5,2.152]
[1768953285073,0.00292706,2939.8,2938.5,2.32234]
[1768953287769,0.00292706,2939.8,2938.6,5.558]
[1768953290075,0.00292706,2939.8,2938.5,0.17034]
[1768953290266,0.00292706,2939.8,2938.7,2.151]
[1768953292874,0.00292706,2939.8,2938.7,5.6025095]
[1768953293080,3.52914995,2940.9,2939.0,3.4515095]
[1768953294279,3.53346153,2940.9,2939.1,5.557]
[1768953294677,3.53346153,2940.9,2939.2,5.557]
[1768953294883,3.52914995,2940.7,2939.3,2.151]
[1768953300091,1.9,2941.8,2939.4,3.799]
[1768953300387,1.522974,2941.7,2939.6,3.4515095]
[1768953300685,1.352814,2941.6,2939.8,3.4515095]
[1768953300877,0.35149598,2941.5,2940.2,5.8964327]
[1768953301078,0.00267,2941.5,2940.3,4.5969232]
[1768953301282,0.00267,2941.5,2940.5,2.4449232]
[1768953301685,0.00267,2941.5,2940.5,5.8964327]
[1768953301877,0.00267,2941.5,2940.6,2.4449232]
[1768953302285,0.00267,2941.5,2940.5,5.8964327]
[1768953302483,0.17018,2941.4,2940.5,2.4449232]
[1768953302676,0.17018,2941.4,2940.6,2.152]
[1768953304087,0.17018,2941.3,2940.2,0.00270125]
[1768953304284,0.17018,2941.3,2940.3,2.152]
[1768953307090,3.53181995,2941.5,2940.2,0.00270125]
[1768953307290,0.17021,2940.9,2940.2,0.00270125]
[1768953312200,3.53181995,2941.5,2940.2,0.00270125]
[1768953312402,3.70199995,2941.5,2940.2,0.00270125]
[1768953312602,0.17018,2941.4,2940.2,0.00270125]
[1768953314212,0.1702,2941.0,2940.3,2.154]
[1768953316914,0.1702,2941.0,2940.2,0.00270125]
[1768953317114,3.52914995,2941.2,2939.8,0.03677612]
[1768953317305,3.52914995,2941.2,2939.9,2.156]
[1768953318210,3.52914995,2941.2,2939.9,2.15898164]
[1768953318608,0.17021,2940.8,2939.9,2.15898164]
[1768953318802,0.17021,2940.8,2939.9,2.19575776]
[1768953319910,0.17022,2940.7,2939.9,2.19575776]
[1768953322003,3.60345206,2940.8,2939.6,0.03677612]
[1768953322310,0.17025,2940.2,2939.6,0.03677612]
[1768953322507,0.17025,2940.2,2939.5,0.03677612]
[1768953323410,0.17025,2940.2,2939.5,0.03990783]
[1768953323815,3.60345206,2940.8,2939.5,0.03990783]
[1768953323816,0.17021,2940.8,2939.6,3.4296063]
[1768953324007,0.17021,2940.8,2939.7,3.4296063]
[1768953324208,0.17021,2940.8,2939.8,3.4296063]
[1768953325405,0.17021,2940.8,2939.8,3.39283018]
[1768953327113,0.17021,2940.8,2939.8,5.83650468]
[1768953327516,0.17021,2940.8,2939.9,3.39283018]
[1768953329015,0.17021,2940.8,2940.0,2.4436745]
[1768953329322,0.17021,2940.8,2940.1,2.157]
[1768953329837,0.17018,2941.4,2940.3,5.83650468]
[1768953330119,0.17018,2941.4,2940.5,3.39283018]
[1768953330613,0.17018,2941.4,2940.5,5.83650468]
[1768953331023,0.17018,2941.4,2940.6,3.39283018]
[1768953331818,0.17018,2941.4,2940.6,5.83650468]
[1768953332020,0.17018,2941.4,2940.7,2.158]
[1768953332614,0.00267,2941.5,2940.7,2.158]
[1768953333524,3.50297755,2942.3,2940.7,5.55083018]
[1768953333715,0.17016,2941.8,2940.7,5.55083018]
[1768953334613,0.17335715,2941.8,2940.7,5.55083018]
[1768953335218,0.17335715,2941.8,2940.7,7.99450468]
[1768953335818,0.17335715,2941.8,2940.8,3.39283018]
[1768953336023,0.17335715,2941.8,2940.9,3.39283018]
[1768953336227,0.17335715,2941.8,2940.9,5.83650468]
[1768953336522,0.17335715,2941.8,2940.9,3.39283018]
[1768953336922,0.17335715,2941.8,2940.9,5.83650468]
[1768953337118,0.17335715,2941.8,2941.0,3.39283018]
[1768953337820,0.17335715,2941.8,2941.1,2.161]
[1768953338713,0.17335715,2941.8,2941.2,2.161]
[1768953339121,0.17017,2941.5,2940.8,2.4436745]
[1768953339322,0.17017,2941.5,2940.9,2.161]
[1768953340417,0.00319715,2941.8,2940.9,2.161]
[1768953340613,0.00319715,2941.8,2940.9,5.55383018]
[1768953341723,0.17335715,2941.8,2940.9,5.55383018]
[1768953342023,0.17016,2941.7,2940.9,5.55383018]
[1768953342416,0.17016,2941.7,2941.0,2.163]
[1768953342716,0.17017,2941.6,2940.9,2.163]
[1768953344022,0.17017,2941.6,2940.8,3.39283018]
[1768953344225,0.17017,2941.6,2940.9,2.163]
[1768953345325,0.17017,2941.6,2940.9,5.86936219]
[1768953345528,0.17017,2941.6,2941.0,3.70636219]
[1768953345825,1.38474219,2941.8,2941.0,3.70636219]
[1768953346622,0.00319715,2941.8,2941.0,3.70636219]
[1768953349130,1.38154504,2942.0,2941.1,3.70636219]
[1768953349629,1.38154504,2941.8,2941.1,3.70636219]
[1768953350023,1.38521461,2941.8,2941.2,2.167]
[1768953350429,0.80380222,2941.8,2941.2,2.167]
[1768953350728,0.80380222,2941.8,2941.2,5.87336219]
[1768953350932,1.38154504,2942.0,2941.3,3.70636219]
[1768953351131,1.38154504,2942.0,2941.4,2.168]
[1768953351632,0.17014,2942.1,2941.4,5.87436219]
[1768953351824,0.17389876,2942.1,2941.4,5.87436219]
[1768953353731,1.38154504,2942.0,2941.4,5.87436219]
[1768953354820,1.38154504,2942.0,2941.2,2.4436745]
[1768953354821,1.38154504,2941.8,2941.5,2.17]
[1768953355024,1.38154504,2941.8,2941.5,0.27635531]
[1768953356721,5.61405731,2943.1,2941.5,0.27635531]
[1768953356722,1.38154504,2942.6,2941.5,0.27635531]
[1768953356920,1.38154504,2942.6,2941.5,3.9827175]
[1768953357526,1.55165504,2942.6,2941.5,3.9827175]
[1768953357733,1.55445516,2942.6,2941.5,3.9827175]
[1768953358832,1.38154504,2942.6,2941.5,2.4436745]
[1768953359041,1.38154504,2942.6,2941.6,2.17]
[1768953359331,3.5025077,2942.9,2941.5,2.4436745]
[1768953359332,1.38154504,2942.2,2941.5,2.17]
[1768953359822,0.00319823,2942.2,2941.5,2.17354452]
[1768953360221,0.00319823,2942.2,2941.5,7.26145175]
[1768953360525,1.38154504,2943.0,2941.7,1.38154504]
[1768953360925,1.38154504,2943.0,2941.7,5.08790723]
[1768953361526,1.38563805,2943.0,2941.8,3.70636219]
[1768953362033,1.38154504,2942.8,2941.8,3.70636219]
[1768953362925,1.38068632,2942.8,2941.8,3.70636219]
[1768953363326,1.38068632,2942.8,2941.5,5.99790534]
[1768953363522,0.17009,2942.9,2941.5,4.61721902]
[1768953363727,0.17011,2942.6,2941.5,0.00354452]
[1768953364832,3.5025077,2942.6,2941.5,0.00354452]
[1768953365035,0.17013,2942.2,2941.5,0.00354452]
[1768953371343,5.52068057,2943.0,2941.5,0.00354452]
[1768953371648,0.1701,2942.7,2941.5,0.00354452]
[1768953372242,0.1701,2942.7,2941.5,2.44721902]
[1768953372449,0.1701,2942.7,2941.6,2.4436745]
[1768953373244,0.1701,2942.7,2941.6,4.6116745]
[1768953376356,0.1701,2942.7,2941.7,2.4436745]
[1768953376658,0.1701,2942.7,2942.0,2.4436745]
[1768953377153,3.50660071,2943.0,2942.0,2.4436745]
[1768953377154,0.00409301,2943.0,2942.0,2.4436745]
[1768953377450,0.17009,2942.9,2942.0,2.4436745]
[1768953386360,0.17009,2942.9,2941.9,2.4436745]
[1768953386957,3.52861809,2943.0,2941.9,2.4436745]
[1768953387157,0.1701,2942.7,2941.8,2.4436745]
[1768953391366,0.17011,2942.6,2941.8,2.4436745]
[1768953396369,0.17011,2942.6,2941.6,3.056154]
[1768953396370,0.17013,2942.3,2941.6,3.056154]
[1768953396568,0.17013,2942.3,2941.5,2.18054452]
[1768953401671,0.17013,2942.3,2941.5,2.18254452]
[1768953401867,0.17013,2942.3,2941.5,0.00354452]
[1768953402174,0.17013,2942.3,2941.5,2.18254452]
[1768953405174,0.00409301,2943.0,2941.6,3.75572939]
[1768953405368,0.3518581,2942.9,2941.6,3.75572939]
[1768953405572,0.00409301,2943.0,2941.6,3.75572939]
[1768953405765,0.35186625,2942.9,2941.6,3.75572939]
[1768953405971,0.00409301,2943.0,2941.6,3.75572939]
[1768953406166,0.35186573,2942.9,2941.6,3.75572939]
[1768953406371,0.00409301,2943.0,2941.6,6.19940389]
[1768953406569,0.1701,2942.7,2941.6,6.19940389]
[1768953406771,0.17011,2942.6,2941.6,6.19940389]
[1768953407074,0.17011,2942.6,2941.7,2.179]
[1768953407273,0.17011,2942.6,2941.8,2.179]
[1768953409075,0.17013,2942.2,2941.5,2.44721902]
[1768953409274,0.17016,2941.8,2941.1,3.75572939]
[1768953409471,0.17016,2941.8,2941.1,2.18]
[1768953410280,0.17016,2941.8,2941.1,2.18363369]
[1768953413179,0.17016,2941.8,2941.1,0.00363369]
[1768953413380,0.17017,2941.6,2941.1,0.00363369]
[1768953414780,0.17013,2942.2,2941.1,3.75936308]
[1768953414979,0.17014,2942.1,2941.1,3.75936308]
[1768953415275,0.17014,2942.1,2941.1,5.93836308]
[1768953419283,0.17015,2941.9,2941.1,0.00363369]
[1768953419581,0.17016,2941.8,2941.1,0.00363369]
[1768953420887,0.17016,2941.7,2941.1,0.00363369]
[1768953422995,0.17018,2941.4,2940.7,2.4442994]
[1768953423288,0.17018,2941.4,2940.7,2.181]
[1768953423983,0.17018,2941.4,2940.7,2.18377714]
[1768953424584,0.17018,2941.4,2940.7,0.00277714]
[1768953425188,0.17019,2941.2,2940.4,2.4442994]
[1768953425381,0.17019,2941.2,2940.2,6.20002879]
[1768953425588,5.05225368,2942.0,2940.4,3.75572939]
[1768953425791,1.38853589,2942.3,2940.6,3.75572939]
[1768953425988,0.17014,2942.1,2940.9,3.75572939]
[1768953426291,0.17014,2942.1,2941.0,5.93872939]
[1768953426889,0.17014,2942.1,2941.1,2.183]
[1768953428493,0.17014,2942.1,2941.2,3.75572939]
[1768953428791,0.17014,2942.1,2941.3,2.184]
[1768953429386,0.17014,2942.1,2941.3,5.93972939]
[1768953429592,1.38853589,2942.6,2941.3,5.93972939]
[1768953429794,0.35072997,2942.5,2941.4,3.75572939]
[1768953429990,1.38853589,2942.6,2941.4,3.75572939]
[1768953430191,0.35073004,2942.5,2941.4,3.75572939]
[1768953430390,1.38853589,2942.6,2941.4,3.75572939]
[1768953430596,0.17014,2942.1,2941.5,2.184]
[1768953433307,0.17014,2942.1,2941.4,3.75572939]
[1768953433596,0.17014,2942.1,2941.5,2.185]
[1768953434493,0.17014,2942.1,2941.2,6.2432994]
[1768953434494,1.38853589,2942.1,2941.2,3.799]
[1768953435698,0.17015,2941.9,2941.2,3.799]
[1768953437702,1.38853589,2942.4,2941.2,3.799]
[1768953438098,0.17015,2941.9,2941.0,2.4442994]
[1768953438291,0.17015,2941.9,2941.1,2.189]
[1768953440596,0.17015,2941.9,2941.2,2.191]
[1768953440796,0.17015,2941.9,2941.1,2.191]
[1768953441998,0.17016,2941.8,2941.1,2.191]
[1768953444807,0.17016,2941.7,2940.9,0.00361636]
[1768953445005,0.17016,2941.7,2940.9,2.19561636]
[1768953445598,1.38178092,2941.6,2940.9,2.19561636]
[1768953445807,1.38178092,2941.8,2940.9,5.75893464]
[1768953446003,3.53120289,2942.6,2941.0,3.56331828]
[1768953446196,1.38178092,2942.1,2941.1,3.56331828]
[1768953446403,1.38178092,2942.1,2941.1,6.00761768]
[1768953447104,0.17014,2942.0,2941.1,6.00761768]
[1768953447607,1.38178092,2942.1,2941.2,6.00761768]
[1768953447801,1.38178092,2942.1,2941.3,2.4442994]
[1768953448006,1.38178092,2942.1,2941.4,2.4442994]
[1768953448207,1.38178092,2942.1,2941.3,2.4442994]
[1768953448708,0.17014,2942.0,2941.3,2.4442994]
[1768953448911,1.55191092,2942.3,2941.4,2.4442994]
[1768953449097,1.55191092,2942.3,2941.5,2.194]
[1768953450113,1.55191092,2942.3,2941.4,2.4442994]
[1768953450304,1.38178092,2942.1,2941.4,2.195]
[1768953450610,1.38178092,2941.9,2941.4,2.195]
[1768953450810,1.55193092,2941.9,2941.2,2.4442994]
[1768953452611,1.55193092,2941.9,2941.3,3.799]
[1768953454410,0.17016,2941.8,2941.3,3.799]
[1768953454720,1.38178092,2941.4,2940.9,2.20261636]
[1768953454920,1.38178092,2941.4,2941.0,3.799]
[1768953455915,1.55195092,2941.6,2941.0,3.799]
[1768953456414,0.17017,2941.6,2941.0,3.799]
[1768953458612,1.55195092,2941.6,2941.1,3.799]
[1768953462020,0.17017,2941.5,2940.9,0.00361636]
[1768953462216,1.38178092,2941.4,2940.9,0.00361636]
[1768953463119,1.38178092,2941.0,2940.4,3.056154]
[1768953463320,1.38178092,2941.0,2940.5,2.209]
[1768953463719,1.38178092,2941.0,2940.4,3.799]
[1768953464023,1.38178092,2941.0,2940.4,6.009]
[1768953464223,1.38178092,2941.0,2940.4,6.01223748]